bitfinex/quotes_SOLUSD_20250101
["timestamp","ask_amount","ask_price","bid_price","bid_amount"]
[1735734800973,23.776884,191.96,191.89,10.46488872]
[1735734800974,136.3,191.95,191.89,10.46488872]
[1735734801173,136.3,191.95,191.89,12.12993224]
[1735734801690,136.3,191.95,191.89,10.46488872]
[1735734802269,136.3,191.99,191.91,10.46488872]
[1735734803192,23.776884,191.98,191.91,10.46488872]
[1735734803585,136.3,192.01,191.93,10.46488872]
[1735734803781,136.3,192.0,191.93,10.46488872]
[1735734806381,136.3,192.0,191.92,10.46488872]
[1735734807811,23.776884,191.99,191.92,10.46488872]
[1735734808798,136.3,191.98,191.92,10.46488872]
[1735734808994,136.3,191.98,191.93,10.46488872]
[1735734809702,136.3,191.98,191.94,10.46488872]
[1735734811185,136.3,191.98,191.93,10.46488872]
[1735734811804,20.0,191.99,191.94,1.66228873]
[1735734812503,20.0,191.99,191.93,10.46488872]
[1735734814808,136.3,191.98,191.91,10.46488872]
[1735734815310,136.3,191.98,191.92,10.46488872]
[1735734815688,136.3,191.98,191.93,1.6598452]
[1735734816293,136.3,191.98,191.92,10.46488872]
[1735734817208,136.3,191.98,191.93,10.46488872]
[1735734817388,136.3,191.98,191.94,10.46488872]
[1735734818507,180.076884,192.0,191.92,10.46488872]
[1735734818697,23.776884,191.99,191.92,10.46488872]
[1735734819323,23.776884,191.99,191.91,10.46488872]
[1735734819526,20.0,191.97,191.89,12.04468872]
[1735734819697,160.076884,191.96,191.89,12.04468872]
[1735734820031,160.076884,191.96,191.9,1.65830292]
[1735734820618,160.076884,191.96,191.91,1.65830292]
[1735734821107,136.3,191.95,191.91,1.65830292]
[1735734821496,136.3,191.95,191.9,1.65830292]
[1735734822004,136.3,191.95,191.89,1.5798]
[1735734822525,136.3,191.95,191.89,12.04468872]
[1735734824522,136.3,191.95,191.9,10.46488872]
[1735734824724,136.3,191.95,191.9,12.12310385]
[1735734825304,136.3,191.95,191.9,10.46488872]
[1735734826508,136.3,191.95,191.89,12.04468872]
[1735734826823,136.3,191.94,191.89,12.04468872]
[1735734827524,136.3,191.94,191.9,1.65816896]
[1735734828101,136.3,191.94,191.89,12.04468872]
[1735734829228,136.3,191.94,191.9,1.65886008]
[1735734829825,136.3,191.95,191.9,1.65886008]
[1735734830013,136.3,191.95,191.89,12.04468872]
[1735734830217,136.3,191.93,191.84,1.6076]
[1735734830409,23.776884,191.94,191.86,10.46488872]
[1735734830609,23.776884,191.94,191.87,1.65974029]
[1735734831505,136.3,191.93,191.88,1.65974029]
[1735734831911,136.3,191.93,191.89,1.65974029]
[1735734832125,20.0,191.9,191.89,1.65974029]
[1735734832321,43.776884,191.9,191.89,1.65974029]
[1735734832722,160.076884,191.89,191.83,12.12462901]
[1735734833312,136.3,191.89,191.86,10.46488872]
[1735734834319,136.3,191.89,191.85,10.46488872]
[1735734834831,136.3,191.89,191.86,1.66060525]
[1735734835607,136.3,191.89,191.85,10.46488872]
[1735734835803,136.3,191.91,191.85,10.46488872]
[1735734836833,136.3,191.91,191.86,1.66016305]
[1735734837318,136.3,191.91,191.85,10.46488872]
[1735734838634,23.776884,191.89,191.82,10.46488872]
[1735734839005,136.3,191.88,191.86,1.66009514]
[1735734839507,136.3,191.88,191.82,10.46488872]
[1735734839711,23.776884,191.87,191.82,10.46488872]
[1735734840031,136.3,191.88,191.83,10.46488872]
[1735734840237,136.3,191.88,191.83,12.12529881]
[1735734840822,136.3,191.88,191.84,1.66041009]
[1735734841217,136.3,191.88,191.84,12.12529881]
[1735734841631,136.3,191.88,191.85,1.66041009]
[1735734842026,136.3,191.93,191.86,1.66041009]
[1735734842815,23.776884,191.92,191.85,10.46488872]
[1735734843142,136.3,191.91,191.86,10.46488872]
[1735734846918,136.3,191.91,191.85,10.46488872]
[1735734847517,136.3,191.91,191.86,10.46488872]
[1735734851040,136.3,191.91,191.85,10.46488872]
[1735734851940,160.076884,191.9,191.84,30.46488872]
[1735734852127,160.076884,191.9,191.84,10.46488872]
[1735734852331,136.3,191.89,191.85,1.65882871]
[1735734852944,136.3,191.89,191.84,10.46488872]
[1735734853943,136.3,191.89,191.85,10.46488872]
[1735734856732,136.3,191.89,191.84,10.46488872]
[1735734857133,136.3,191.89,191.85,1.65892585]
[1735734857839,136.3,191.89,191.84,10.46488872]
[1735734859233,136.3,191.89,191.85,1.65919855]
[1735734860038,136.3,191.89,191.85,12.12408727]
[1735734860354,136.3,191.89,191.85,10.46488872]
[1735734860743,136.3,191.89,191.86,1.65980691]
[1735734861335,136.3,191.89,191.85,10.46488872]
[1735734862134,136.3,191.89,191.84,10.46488872]
[1735734862745,136.3,191.89,191.85,1.66045685]
[1735734863148,136.3,191.89,191.85,12.12534557]
[1735734863350,136.3,191.89,191.86,1.66045685]
[1735734864442,136.3,191.89,191.85,10.46488872]
[1735734865359,136.3,191.89,191.86,2.64269435]
[1735734865735,136.3,191.89,191.87,1.65096907]
[1735734866138,136.3,191.89,191.87,12.11585779]
[1735734866342,136.3,191.89,191.87,10.46488872]
[1735734866643,136.3,191.91,191.88,10.46488872]
[1735734866843,136.3,191.92,191.87,10.46488872]
[1735734869370,136.3,191.91,191.86,10.46488872]
[1735734870050,136.3,191.9,191.87,1.65081323]
[1735734870769,136.3,191.9,191.84,10.46488872]
[1735734870973,136.3,191.9,191.85,10.46488872]
[1735734871546,136.3,191.9,191.84,10.46488872]
[1735734871955,136.3,191.9,191.81,13.0331]
[1735734872280,136.3,191.9,191.83,10.46488872]
[1735734872966,136.3,191.9,191.84,10.46488872]
[1735734874881,136.3,191.91,191.84,10.46488872]
[1735734875038,23.776884,191.9,191.84,10.46488872]
[1735734875377,23.776884,191.9,191.82,10.46488872]
[1735734877965,23.776884,191.88,191.82,10.46488872]
[1735734880969,136.3,191.87,191.79,1.6076]
[1735734881164,23.776884,191.86,191.81,10.46488872]
[1735734881887,136.3,191.85,191.8,10.46488872]
[1735734882091,136.3,191.85,191.78,8.17500927]
[1735734882092,23.776884,191.84,191.78,8.17500927]
[1735734882747,23.776884,191.84,191.76,10.46488872]
[1735734882946,136.3,191.83,191.77,10.46488872]
[1735734883996,136.3,191.81,191.74,9.80700927]
[1735734884292,136.3,191.81,191.75,10.46488872]
[1735734884651,136.3,191.81,191.74,20.27189799]
[1735734884884,160.076884,191.8,191.74,8.17500927]
[1735734885088,160.076884,191.8,191.73,10.46488872]
[1735734887100,20.0,191.8,191.77,10.46488872]
[1735734887271,82.8199,191.86,191.7,54.90075488]
[1735734887272,136.3,191.82,191.78,10.46488872]
[1735734892095,136.3,191.82,191.77,10.46488872]
[1735734892895,136.3,191.81,191.77,10.46488872]
[1735734893084,156.3,191.81,191.76,10.46488872]
[1735734893278,136.3,191.81,191.76,10.46488872]
[1735734894179,23.776884,191.72,191.68,8.17500927]
[1735734894386,160.076884,191.72,191.68,8.17500927]
[1735734894778,136.3,191.71,191.66,10.46488872]
[1735734896276,136.3,191.71,191.67,9.96488872]
[1735734896490,136.3,191.71,191.63,6.2238]
[1735734896677,136.3,191.71,191.67,10.46488872]
[1735734897500,136.3,191.71,191.63,6.2238]
[1735734897904,136.3,191.71,191.66,10.46488872]
[1735734898098,136.3,191.71,191.67,10.46488872]
[1735734898997,156.3,191.73,191.67,10.46488872]
[1735734901607,156.3,191.73,191.66,10.46488872]
[1735734901825,6.7440857,191.75,191.71,10.46488872]
[1735734901988,136.3,191.78,191.72,10.46488872]
[1735734902508,136.3,191.78,191.73,10.46488872]
[1735734902885,143.0440857,191.81,191.74,10.46488872]
[1735734903088,1.6091,191.84,191.69,1.6419]
[1735734903089,136.3,191.84,191.78,10.46488872]
[1735734903741,23.776884,191.85,191.79,10.46488872]
[1735734904021,136.3,191.84,191.78,10.46488872]
[1735734904716,136.3,191.86,191.79,10.46488872]
[1735734905234,136.3,191.85,191.78,10.46488872]
[1735734905398,23.776884,191.84,191.76,10.46488872]
[1735734905721,23.776884,191.84,191.74,10.46488872]
[1735734905926,20.0,191.81,191.73,10.46488872]
[1735734906280,160.076884,191.8,191.73,10.46488872]
[1735734906522,160.076884,191.8,191.72,10.46488872]
[1735734907302,136.3,191.79,191.71,10.46488872]
[1735734908088,136.3,191.79,191.72,10.46488872]
[1735734910510,136.3,191.83,191.73,10.46488872]
[1735734910705,136.3,191.81,191.74,10.46488872]
[1735734911026,0.30487972,191.84,191.76,10.46488872]
[1735734911027,136.3,191.82,191.76,10.46488872]
[1735734911510,136.3,191.82,191.74,10.46488872]
[1735734911812,136.3,191.82,191.75,10.46488872]
[1735734912687,136.3,191.82,191.74,10.46488872]
[1735734912908,136.3,191.82,191.73,30.46488872]
[1735734913104,136.3,191.8,191.69,1.6419]
[1735734913309,160.076884,191.79,191.7,10.46488872]
[1735734913894,160.076884,191.79,191.71,10.46488872]
[1735734915185,136.3,191.79,191.72,10.46488872]
[1735734917005,136.3,191.81,191.72,10.46488872]
[1735734920109,136.3,191.8,191.72,10.46488872]
[1735734920897,136.3,191.8,191.7,10.46488872]
[1735734920898,23.776884,191.79,191.7,10.46488872]
[1735734922100,23.776884,191.79,191.7,30.46488872]
[1735734923033,136.3,191.78,191.7,30.46488872]
[1735734923933,136.3,191.78,191.7,20.0]
[1735734926140,136.3,191.78,191.7,30.46488872]
[1735734928846,136.3,191.78,191.71,10.46488872]
[1735734930142,136.3,191.78,191.7,30.46488872]
[1735734930345,136.3,191.78,191.7,20.0]
[1735734931417,136.3,191.77,191.7,20.0]
[1735734931619,23.776884,191.76,191.66,10.46488872]
[1735734931818,23.776884,191.77,191.66,10.46488872]
[1735734932152,23.776884,191.74,191.64,10.46488872]
[1735734933029,23.776884,191.74,191.65,10.46488872]
[1735734935016,160.076884,191.72,191.64,10.46488872]
[1735734935227,23.776884,191.7,191.62,10.46488872]
[1735734935548,136.3,191.69,191.61,1.5762]
[1735734936133,136.3,191.69,191.61,12.04108872]
[1735734937743,136.3,191.68,191.6,10.46488872]
[1735734939843,23.776884,191.68,191.58,13.0492]
[1735734940146,23.776884,191.68,191.59,10.46488872]
[1735734940319,23.776884,191.68,191.58,10.46488872]
[1735734942352,23.776884,191.68,191.59,10.46488872]
[1735734944021,136.3,191.67,191.59,10.46488872]
[1735734944222,136.3,191.67,191.58,10.46488872]
[1735734947056,136.3,191.66,191.58,10.46488872]
[1735734947750,136.3,191.66,191.57,10.46488872]
[1735734948733,137.8395,191.66,191.57,10.46488872]
[1735734949836,137.8395,191.66,191.58,30.46488872]
[1735734950144,23.776884,191.65,191.57,10.46488872]
[1735734950548,1.5395,191.66,191.57,10.46488872]
[1735734950930,23.776884,191.65,191.55,13.0513]
[1735734951136,136.3,191.64,191.56,10.46488872]
[1735734951352,136.3,191.64,191.55,23.51618872]
[1735734951832,1.5395,191.66,191.53,10.46488872]
[1735734951833,136.3,191.62,191.53,10.46488872]
[1735734952035,142.4855,191.62,191.53,10.46488872]
[1735734952235,23.776884,191.61,191.49,21.23030927]
[1735734952461,23.776884,191.61,191.51,10.46488872]
[1735734954255,23.776884,191.61,191.5,10.46488872]
[1735734954453,6.1855,191.62,191.5,10.46488872]
[1735734954454,136.3,191.58,191.5,10.46488872]
[1735734954657,136.3,191.55,191.46,14.605]
[1735734954848,136.3,191.55,191.47,10.46488872]
[1735734955052,136.3,191.55,191.46,20.0]
[1735734955361,136.3,191.55,191.46,10.46488872]
[1735734956763,136.3,191.55,191.43,6.6563]
[1735734957059,136.3,191.55,191.46,10.46488872]
[1735734957257,136.3,191.55,191.47,10.46488872]
[1735734957569,136.3,191.53,191.44,13.0589]
[1735734957752,136.3,191.53,191.46,10.46488872]
[1735734958053,136.3,191.53,191.47,10.46488872]
[1735734958669,136.3,191.53,191.44,13.0589]
[1735734958845,136.3,191.53,191.47,10.46488872]
[1735734959941,136.3,191.53,191.44,13.0589]
[1735734960142,6.37469682,191.56,191.5,10.46488872]
[1735734960462,136.3,191.57,191.49,20.0]
[1735734960668,136.3,191.59,191.51,10.46488872]
[1735734961050,136.3,191.59,191.49,20.0]
[1735734961250,23.776884,191.58,191.49,20.0]
[1735734962148,23.776884,191.58,191.48,10.46488872]
[1735734962343,23.776884,191.56,191.47,10.46488872]
[1735734962543,23.776884,191.56,191.46,30.46488872]
[1735734963564,23.776884,191.56,191.47,10.46488872]
[1735734964967,136.3,191.57,191.49,10.46488872]
[1735734965146,1.5985,191.6,191.52,10.46488872]
[1735734965147,136.3,191.59,191.52,10.46488872]
[1735734965347,1.5985,191.6,191.54,10.46488872]
[1735734965547,1.5985,191.6,191.53,20.0]
[1735734965747,142.4855,191.62,191.53,20.0]
[1735734965947,142.4855,191.62,191.56,10.46488872]
[1735734966172,7.29947459,191.63,191.56,10.46488872]
[1735734966370,136.3,191.64,191.56,10.46488872]
[1735734967492,20.0,191.64,191.57,10.46488872]
[1735734967847,23.776884,191.63,191.56,10.46488872]
[1735734968360,20.0,191.64,191.56,10.46488872]
[1735734968655,20.0,191.64,191.57,10.46488872]
[1735734969799,1.5565,191.65,191.57,10.46488872]
[1735734969968,1.5565,191.65,191.58,10.46488872]
[1735734970982,136.3,191.66,191.59,10.46488872]
[1735734971682,136.3,191.66,191.6,10.46488872]
[1735734971861,136.3,191.67,191.62,10.46488872]
[1735734972649,136.3,191.67,191.63,10.46488872]
[1735734973082,136.3,191.67,191.62,10.46488872]
[1735734975157,1.6494,191.7,191.64,10.46488872]
[1735734975375,136.3,191.7,191.65,10.46488872]
[1735734975677,7.29947459,191.73,191.66,10.46488872]
[1735734975678,136.3,191.71,191.66,10.46488872]
[1735734975867,136.3,191.74,191.67,10.46488872]
[1735734976052,136.3,191.73,191.68,10.46488872]
[1735734976777,136.3,191.74,191.67,10.46488872]
[1735734976974,136.3,191.73,191.66,10.46488872]
[1735734977182,1.6494,191.75,191.66,10.46488872]
[1735734977183,136.3,191.74,191.66,10.46488872]
[1735734977681,160.076884,191.73,191.64,10.46488872]
[1735734977979,160.076884,191.73,191.63,10.46488872]
[1735734978165,160.076884,191.73,191.65,10.46488872]
[1735734978777,136.3,191.74,191.67,10.46488872]
[1735734979080,136.3,191.76,191.7,10.46488872]
[1735734979598,136.3,191.76,191.71,10.46488872]
[1735734980053,1.6494,191.8,191.72,10.46488872]
[1735734980054,136.3,191.79,191.72,10.46488872]
[1735734980261,136.3,191.78,191.71,10.46488872]
[1735734982282,136.3,191.79,191.71,16.37916227]
[1735734983673,136.3,191.78,191.72,16.37916227]
[1735734984468,136.3,191.78,191.7,16.37916227]
[1735734986166,136.3,191.78,191.68,16.37916227]
[1735734987677,136.3,191.78,191.69,16.37916227]
[1735734988575,136.3,191.78,191.7,16.37916227]
[1735734988892,136.3,191.77,191.71,16.37916227]
[1735734989282,136.3,191.77,191.73,16.37916227]
[1735734990367,1.6494,191.8,191.73,16.37916227]
[1735734991885,136.3,191.81,191.74,16.37916227]
[1735734993985,136.3,191.81,191.72,16.37916227]
[1735734995068,136.3,191.8,191.73,16.37916227]
[1735734996594,136.3,191.8,191.74,16.37916227]
[1735734998180,160.076884,191.83,191.74,16.37916227]
[1735735000904,160.076884,191.83,191.73,16.37916227]
[1735735001193,160.076884,191.83,191.71,13.0399]
[1735735001194,136.3,191.82,191.72,16.37916227]
[1735735002294,136.3,191.82,191.72,10.48191829]
[1735735003599,136.3,191.81,191.73,10.48191829]
[1735735004113,136.3,191.8,191.72,10.48191829]
[1735735004999,160.076884,191.79,191.68,13.0425]
[1735735005205,160.076884,191.79,191.69,10.48191829]
[1735735005587,160.076884,191.79,191.68,23.52441829]
[1735735005906,1.5621,191.78,191.68,23.52441829]
[1735735007078,23.776884,191.77,191.68,10.48191829]
[1735735007299,136.3,191.76,191.65,14.6358]
[1735735007510,136.3,191.76,191.67,10.48191829]
[1735735009389,136.3,191.74,191.65,23.52631829]
[1735735009577,23.776884,191.75,191.64,30.48191829]
[1735735009578,136.3,191.73,191.64,30.48191829]
[1735735010885,136.3,191.72,191.64,30.48191829]
[1735735011087,1.6229,191.71,191.63,10.48191829]
[1735735011290,136.3,191.69,191.63,10.48191829]
[1735735012206,136.3,191.69,191.62,10.48191829]
[1735735014395,136.3,191.7,191.64,10.48191829]
[1735735014821,136.3,191.7,191.65,10.48191829]
[1735735015318,136.3,191.73,191.67,10.48191829]
[1735735016329,136.3,191.74,191.66,10.48191829]
[1735735016484,136.3,191.74,191.65,10.48191829]
[1735735017085,23.776884,191.73,191.65,10.48191829]
[1735735017290,23.776884,191.73,191.64,10.48191829]
[1735735018511,23.776884,191.73,191.65,10.48191829]
[1735735019305,136.3,191.74,191.66,10.48191829]
[1735735021889,136.3,191.74,191.67,10.48191829]
[1735735022088,136.3,191.75,191.68,10.48191829]
[1735735022289,136.3,191.75,191.69,10.48191829]
[1735735025614,136.3,191.75,191.68,10.48191829]
[1735735027997,136.3,191.75,191.65,13.044]
[1735735028212,136.3,191.74,191.65,10.48191829]
[1735735028498,1.6229,191.76,191.65,10.48191829]
[1735735028499,136.3,191.73,191.65,10.48191829]
[1735735028697,160.076884,191.72,191.64,10.48191829]
[1735735028898,160.076884,191.72,191.63,10.48191829]
[1735735029805,160.076884,191.72,191.64,10.48191829]
[1735735031115,160.076884,191.72,191.65,10.48191829]
[1735735031295,136.3,191.74,191.66,10.48191829]
[1735735031495,143.59947459,191.75,191.69,10.48191829]
[1735735031718,136.3,191.76,191.7,10.48191829]
[1735735033831,136.3,191.78,191.71,10.48191829]
[1735735034502,136.3,191.78,191.7,10.48191829]
[1735735035125,136.3,191.78,191.71,10.48191829]
[1735735036523,136.3,191.77,191.71,10.48191829]
[1735735036697,136.3,191.77,191.72,10.48191829]
[1735735037119,136.3,191.77,191.73,10.48191829]
[1735735037319,136.3,191.77,191.74,10.48191829]
[1735735037826,136.3,191.82,191.71,30.433384]
[1735735038015,136.3,191.83,191.77,10.48191829]
[1735735038210,136.3,191.82,191.77,10.48191829]
[1735735039117,136.3,191.82,191.76,10.48191829]
[1735735039322,136.3,191.82,191.75,10.48191829]
[1735735039517,136.3,191.84,191.71,6.6565]
[1735735039716,23.776884,191.83,191.73,10.48191829]
[1735735039907,23.776884,191.83,191.74,10.48191829]
[1735735040607,136.3,191.82,191.76,10.48191829]
[1735735040808,136.3,191.81,191.76,10.48191829]
[1735735043228,136.3,191.84,191.77,10.48191829]
[1735735044642,136.3,191.83,191.76,10.48191829]
[1735735047013,136.3,191.84,191.75,10.48191829]
[1735735049235,136.3,191.84,191.74,10.48191829]
[1735735051627,136.3,191.84,191.75,10.48191829]
[1735735052332,136.3,191.83,191.75,10.48191829]
[1735735053953,136.3,191.83,191.74,10.48191829]
[1735735054344,23.776884,191.82,191.73,10.48191829]
[1735735054646,31.07635859,191.82,191.72,10.48191829]
[1735735054847,31.07635859,191.82,191.73,10.48191829]
[1735735055220,136.3,191.81,191.73,10.48191829]
[1735735055439,136.3,191.81,191.72,10.48191829]
[1735735055945,136.3,191.81,191.73,10.48191829]
[1735735056137,136.3,191.81,191.71,6.6565]
[1735735056334,136.3,191.81,191.73,10.48191829]
[1735735058245,136.3,191.8,191.73,10.48191829]
[1735735059244,136.3,191.8,191.72,10.48191829]
[1735735061247,136.3,191.81,191.72,10.48191829]
[1735735061462,143.59947459,191.81,191.72,10.48191829]
[1735735061834,143.59947459,191.81,191.71,17.13841829]
[1735735062524,23.776884,191.8,191.71,17.13841829]
[1735735064342,136.3,191.79,191.71,17.13841829]
[1735735065053,136.3,191.78,191.69,1.5549]
[1735735065625,23.776884,191.77,191.69,1.5549]
[1735735065830,136.3,191.75,191.66,16.51381829]
[1735735066254,136.3,191.75,191.67,10.48191829]
[1735735066652,136.3,191.75,191.66,6.0319]
[1735735066976,136.3,191.75,191.67,10.48191829]
[1735735067293,136.3,191.76,191.67,10.48191829]
[1735735067951,136.3,191.76,191.68,10.48191829]
[1735735070256,136.3,191.75,191.68,10.48191829]
[1735735071738,136.3,191.75,191.69,10.48191829]
[1735735072665,23.776884,191.74,191.65,1.6646]
[1735735072832,31.07635859,191.74,191.65,1.6646]
[1735735073257,136.3,191.73,191.65,1.6646]
[1735735073433,136.3,191.73,191.65,21.6646]
[1735735076262,136.3,191.71,191.65,21.6646]
[1735735076759,23.776884,191.72,191.62,6.4687]
[1735735076948,25.53556187,191.72,191.62,6.4687]
[1735735077155,31.07635859,191.72,191.63,10.48191829]
[1735735079874,7.29947459,191.72,191.64,10.48191829]
[1735735081061,31.07635859,191.72,191.63,10.48191829]
[1735735082375,136.3,191.71,191.63,10.48191829]
[1735735082576,136.3,191.71,191.64,10.48191829]
[1735735085257,7.29947459,191.72,191.64,10.48191829]
[1735735085563,136.3,191.74,191.68,10.48191829]
[1735735085936,143.40618763,191.76,191.69,10.48191829]
[1735735086143,136.3,191.76,191.69,10.48191829]
[1735735086843,136.3,191.76,191.68,10.48191829]
[1735735088955,7.29947459,191.77,191.72,10.48191829]
[1735735089271,7.10618763,191.81,191.73,10.48191829]
[1735735089272,136.3,191.8,191.73,10.48191829]
[1735735089690,136.3,191.8,191.72,10.48191829]
[1735735093972,136.3,191.82,191.73,10.48191829]
[1735735097059,23.776884,191.82,191.72,10.48191829]
[1735735097276,136.3,191.81,191.71,30.48191829]
[1735735097481,136.3,191.8,191.72,10.48191829]
[1735735098475,136.3,191.8,191.73,10.48191829]
[1735735098884,136.3,191.8,191.72,10.48191829]
[1735735100571,136.3,191.8,191.74,10.48191829]
[1735735101367,136.3,191.8,191.73,12.02171829]
[1735735101758,136.3,191.8,191.73,1.5398]
[1735735101956,136.3,191.8,191.71,10.48191829]
[1735735102159,136.3,191.8,191.7,10.48191829]
[1735735102370,136.3,191.79,191.69,12.02171829]
[1735735102969,20.0,191.75,191.69,1.5398]
[1735735103176,136.3,191.74,191.66,10.48191829]
[1735735104186,136.3,191.74,191.65,30.48191829]
[1735735104975,136.3,191.74,191.65,10.48191829]
[1735735106685,20.0,191.75,191.66,10.48191829]
[1735735106877,20.0,191.75,191.67,10.48191829]
[1735735107073,156.3,191.75,191.68,10.48191829]
[1735735107309,156.3,191.75,191.69,10.48191829]
[1735735107479,20.0,191.75,191.7,10.48191829]
[1735735110775,20.0,191.75,191.68,10.48191829]
[1735735112787,20.0,191.75,191.69,10.48191829]
[1735735114589,136.3,191.76,191.7,10.48191829]
[1735735116092,136.3,191.78,191.71,10.48191829]
[1735735119804,136.3,191.79,191.73,10.48191829]
[1735735122082,136.3,191.79,191.72,10.48191829]
[1735735123900,136.3,191.8,191.72,10.48191829]
[1735735124496,136.3,191.8,191.73,10.48191829]
[1735735127582,136.3,191.81,191.73,10.48191829]
[1735735127798,136.3,191.81,191.72,30.48191829]
[1735735128708,23.776884,191.8,191.72,20.0]
[1735735130681,136.3,191.79,191.72,20.0]
[1735735131903,136.3,191.79,191.72,30.48191829]
[1735735132414,136.3,191.79,191.72,20.0]
[1735735133715,136.3,191.79,191.72,30.48191829]
[1735735136814,136.3,191.78,191.72,30.48191829]
[1735735137430,136.3,191.78,191.74,10.48191829]
[1735735139111,136.3,191.78,191.75,10.48191829]
[1735735139294,136.3,191.78,191.72,20.0]
[1735735139295,136.3,191.81,191.76,10.48191829]
[1735735139808,136.3,191.83,191.75,10.48191829]
[1735735140902,136.3,191.82,191.74,10.48191829]
[1735735142587,136.3,191.82,191.76,10.48191829]
[1735735143111,13.0291,191.88,191.7,57.38616415]
[1735735143112,136.3,191.88,191.78,10.48191829]
[1735735143419,20.0,191.85,191.78,10.48191829]
[1735735143796,20.0,191.85,191.77,1.5148]
[1735735143991,20.0,191.85,191.77,11.99671829]
[1735735144202,20.0,191.85,191.77,1.5148]
[1735735144203,34.00027889,191.85,191.77,1.5148]
[1735735147611,26.89409126,191.85,191.77,1.5148]
[1735735148019,23.776884,191.84,191.77,1.5148]
[1735735148717,136.3,191.83,191.77,1.5148]
[1735735149728,136.3,191.82,191.74,30.48191829]
[1735735150703,136.3,191.82,191.75,10.48191829]
[1735735154624,136.3,191.83,191.75,10.48191829]
[1735735155024,136.3,191.83,191.77,10.48191829]
[1735735156913,20.0,191.85,191.78,10.48191829]
[1735735157113,136.3,191.86,191.78,10.48191829]
[1735735159126,136.3,191.86,191.79,12.13641829]
[1735735160703,20.0,191.85,191.79,12.13641829]
[1735735160950,136.3,191.88,191.79,12.13641829]
[1735735162406,136.3,191.88,191.8,10.48191829]
[1735735163528,136.3,191.89,191.82,10.48191829]
[1735735166809,136.3,191.89,191.79,1.6545]
[1735735167006,136.3,191.89,191.81,10.48191829]
[1735735172705,136.3,191.89,191.8,10.48191829]
[1735735172924,136.3,191.89,191.79,12.13641829]
[1735735173432,136.3,191.89,191.8,10.48191829]
[1735735175631,136.3,191.88,191.8,10.48191829]
[1735735175810,136.3,191.88,191.79,1.6545]
[1735735176010,136.3,191.88,191.8,10.48191829]
[1735735177524,136.3,191.88,191.81,10.48191829]
[1735735178709,136.3,191.89,191.81,10.48191829]
[1735735179039,136.3,191.89,191.79,1.6545]
[1735735179225,136.3,191.89,191.81,10.48191829]
[1735735179427,136.3,191.89,191.8,10.48191829]
[1735735183214,136.3,191.89,191.81,10.48191829]
[1735735185156,136.3,191.89,191.83,10.48191829]
[1735735185446,136.3,191.89,191.85,10.48191829]
[1735735186544,136.3,191.89,191.84,10.48191829]
[1735735187844,136.3,191.92,191.84,10.48191829]
[1735735190644,20.0,191.9,191.84,10.48191829]
[1735735191835,20.0,191.9,191.83,10.48191829]
[1735735195043,20.0,191.89,191.83,10.48191829]
[1735735197648,20.0,191.89,191.82,10.48191829]
[1735735197946,20.0,191.89,191.81,10.48191829]
[1735735199055,20.0,191.89,191.82,10.48191829]
[1735735199239,20.0,191.89,191.83,10.48191829]
[1735735200348,20.0,191.89,191.84,10.48191829]
[1735735201244,20.0,191.89,191.8,6.5009]
[1735735201450,20.0,191.89,191.82,10.48191829]
[1735735201642,20.0,191.89,191.81,10.48191829]
[1735735201851,20.0,191.88,191.8,6.5009]
[1735735202157,20.0,191.88,191.8,16.98281829]
[1735735203759,20.0,191.87,191.8,16.98281829]
[1735735205661,136.3,191.86,191.8,16.98281829]
[1735735207282,136.3,191.86,191.82,10.48191829]